fUST/lending_fUST_20250609
["ID","MTS","AMOUNT","RATE_DAILY","PERIOD"]
[365029397,1749414643418,-5041.00235599,0.0002059,3]
[365029398,1749414643427,-260.49,0.000206,2]
[365029399,1749414643438,-1266.15,0.000206,2]
[365029400,1749414643448,-5041.00235599,0.00020762,3]
[365029401,1749414643458,-1000.0,0.00020772,2]
[365029402,1749414643473,-822.62,0.00020812,3]
[365029403,1749414643484,-411.32,0.00020812,3]
[365029404,1749414643495,-440.0,0.00020821,2]
[365029405,1749414643506,-440.0,0.00020821,2]
[365029406,1749414643516,-440.0,0.00020821,2]
[365029407,1749414643526,-440.0,0.00020821,2]
[365029408,1749414643536,-440.0,0.00020821,2]
[365029409,1749414643547,-1080.34,0.00020821,2]
[365029410,1749414643558,-1360.0,0.00020821,2]
[365029411,1749414643568,-452.26,0.00020821,2]
[365029412,1749414643578,-440.0,0.00020821,2]
[365029413,1749414643587,-440.0,0.00020821,2]
[365029414,1749414643598,-440.0,0.00020821,2]
[365029415,1749414643608,-440.0,0.00020821,2]
[365029416,1749414643620,-328.50278352,0.00020821,2]
[365029419,1749414646077,-440.0,0.00019178,2]
[365029420,1749414646087,-440.0,0.00019452,2]
[365029421,1749414646096,-111.49721648,0.00020821,2]
[365029422,1749414646106,-440.0,0.00020821,2]
[365029423,1749414646116,-285.50278352,0.00020821,2]
[365029424,1749414646128,-154.49721648,0.00020821,2]
[365029425,1749414646138,-440.0,0.00020821,2]
[365029426,1749414646149,-278.19054064,0.00020821,2]
[365029427,1749414646161,-161.80945936,0.00020821,2]
[365029428,1749414646170,-678.82,0.00020821,2]
[365029429,1749414646180,-886.29,0.00020821,2]
[365029430,1749414646190,-51.75577808,0.00020821,2]
[365029434,1749414718152,165.0,0.00016438,3]
[365029435,1749414741295,370.49,0.00017701,2]
[365029436,1749414822657,400.06,0.00017519,2]
[365029439,1749414902912,193.056633,0.00017524,2]
[365029440,1749414902936,201.913367,0.00017524,2]
[365029442,1749414984227,389.95,0.00017494,2]
[365029445,1749415065951,384.98,0.00017962,2]
[365029446,1749415147421,407.51,0.00017547,2]
[365029450,1749415275465,4920.238633,0.00017575,2]
[365029451,1749415275489,79.761367,0.00017575,2]
[365029452,1749415368407,411.3,0.00017756,2]
[365029454,1749415445829,406.06,0.00017704,2]
[365029455,1749415526191,400.9,0.00017701,2]
[365029458,1749415607862,395.79,0.00017805,2]
[365029459,1749415614323,452.973378,0.00013699,2]
[365029479,1749415765810,390.76,0.0001766,2]
[365029504,1749415832178,-581.2935919,0.00018175,2]
[365029511,1749415832234,-618.7064081,0.00018175,2]
[365029513,1749415832243,-8844.6824564,0.00018176,2]
[365029515,1749415832254,-221.1887677,0.000189,2]
[365029517,1749415832263,-211.96122273,0.00019078,2]
[365029519,1749415832273,-232.9049283,0.00019166,2]
[365029521,1749415832283,-300.0,0.00019167,2]
[365029523,1749415832292,-339.01,0.00019168,3]
[365029525,1749415832302,-169.5,0.00019168,3]
[365029528,1749415832312,-508.55,0.00019168,3]
[365029530,1749415832321,-607.72295623,0.00019173,2]
[365029532,1749415832331,-451.61465739,0.00019173,2]
[365029534,1749415832340,-479.19595828,0.00019173,2]
[365029536,1749415832351,-160.0,0.00019177,2]
[365029538,1749415832361,-300.0,0.00019177,2]
[365029540,1749415832370,-565.57778568,0.00019177,2]
[365029542,1749415832379,-510.30635197,0.00019177,2]
[365029544,1749415832389,-510.30635197,0.00019177,2]
[365029546,1749415832399,-510.30635197,0.00019177,2]
[365029548,1749415832408,-510.30635197,0.00019177,2]
[365029550,1749415832418,-510.30635197,0.00019177,2]
[365029552,1749415832428,-510.30635197,0.00019177,2]
[365029554,1749415832439,-510.30635197,0.00019177,2]
[365029556,1749415832449,-510.30635197,0.00019177,2]
[365029558,1749415832459,-510.30635197,0.00019177,2]
[365029561,1749415832468,-510.30635197,0.00019177,2]
[365029563,1749415832478,-510.30635197,0.00019177,2]
[365029565,1749415832487,-510.30635197,0.00019177,2]
[365029567,1749415832497,-510.30635197,0.00019177,2]
[365029569,1749415832506,-510.30635197,0.00019177,2]
[365029571,1749415832515,-510.30635197,0.00019177,2]
[365029574,1749415832525,-510.30635197,0.00019177,2]
[365029576,1749415832535,-510.30635197,0.00019177,2]
[365029580,1749415832544,-510.30635197,0.00019177,2]
[365029582,1749415832554,-284.93248237,0.00019177,2]
[365029586,1749415832566,-250.88918719,0.00019177,2]
[365029589,1749415832576,-535.82166956,0.00019177,2]
[365029592,1749415832585,-535.82166956,0.00019177,2]
[365029595,1749415832594,-327.71747369,0.00019177,2]
[365029598,1749415832606,-208.10419587,0.00019177,2]
[365029602,1749415832617,-535.82166956,0.00019177,2]
[365029605,1749415832627,-535.82166956,0.00019177,2]
[365029608,1749415832637,-535.82166956,0.00019177,2]
[365029611,1749415832646,-535.82166956,0.00019177,2]
[365029614,1749415832656,-156.84673324,0.00019177,2]
[365029618,1749415832672,-378.97493632,0.00019177,2]
[365029620,1749415832682,-163.66305584,0.00019178,2]
[365029622,1749415832691,-279.49,0.00019178,2]
[365029624,1749415832701,-333.56687481,0.00019178,2]
[365029626,1749415832711,-440.0,0.00019178,2]
[365029628,1749415832720,-440.0,0.00019178,2]
[365029630,1749415832729,-440.0,0.00019178,2]
[365029632,1749415832739,-500.0,0.00019178,2]
[365029634,1749415832748,-500.0,0.00019178,2]
[365029636,1749415832759,-500.0,0.00019178,2]
[365029638,1749415832770,-500.0,0.00019178,2]
[365029640,1749415832780,-422.08,0.00019178,2]
[365029642,1749415832790,-420.0,0.00019178,2]
[365029644,1749415832799,-432.38763229,0.00019178,2]
[365029646,1749415832809,-303.97387247,0.00019178,2]
[365029648,1749415832818,-430.0,0.00019178,2]
[365029650,1749415832828,-440.0,0.00019178,2]
[365029651,1749415832837,-430.0,0.00019178,2]
[365029653,1749415832847,-410.34342262,0.00019178,2]
[365029655,1749415832857,-401.71574444,0.00019178,2]
[365029657,1749415832866,-430.0,0.00019178,2]
[365029659,1749415832875,-310.0,0.00019178,2]
[365029660,1749415832885,-420.0,0.00019178,2]
[365029662,1749415832894,-404.45371331,0.00019178,2]
[365029664,1749415832904,-415.51965597,0.00019178,2]
[365029666,1749415832913,-380.53768649,0.00019178,2]
[365029668,1749415832927,-59.46231351,0.00019178,2]
[365029669,1749415832937,-440.0,0.00019178,2]
[365029670,1749415832947,-440.0,0.00019178,2]
[365029671,1749415832957,-440.0,0.00019178,2]
[365029672,1749415832967,-440.0,0.00019178,2]
[365029673,1749415832977,-396.55740732,0.00019178,2]
[365029674,1749415832986,-430.0,0.00019178,2]
[365029675,1749415832996,-440.0,0.00019178,2]
[365029676,1749415833005,-440.0,0.00019178,2]
[365029677,1749415833015,-440.0,0.00019178,2]
[365029678,1749415833028,-440.0,0.00019178,2]
[365029679,1749415833038,-440.0,0.00019178,2]
[365029680,1749415833048,-430.0,0.00019178,2]
[365029681,1749415833058,-284.12473251,0.00019178,2]
[365029682,1749415833069,-440.0,0.00019178,2]
[365029683,1749415833078,-440.0,0.00019178,2]
[365029684,1749415833088,-430.0,0.00019178,2]
[365029685,1749415833097,-440.0,0.00019178,2]
[365029686,1749415833107,-440.0,0.00019178,2]
[365029687,1749415833117,-440.0,0.00019178,2]
[365029688,1749415833127,-500.0,0.00019178,2]
[365029689,1749415833136,-500.0,0.00019178,2]
[365029690,1749415833146,-420.99275203,0.00019178,2]
[365029692,1749415833155,-371.93817108,0.00019178,2]
[365029694,1749415833164,-378.77848986,0.00019178,2]
[365029696,1749415833174,-543.81,0.00019178,2]
[365029698,1749415833183,-440.0,0.00019178,2]
[365029700,1749415833192,-168.56982998,0.00019178,2]
[365029701,1749415833201,-440.0,0.00019178,2]
[365029703,1749415833211,-454.53548786,0.00019178,2]
[365029705,1749415833221,-440.0,0.00019178,2]
[365029707,1749415833230,-440.0,0.00019178,2]
[365029710,1749415833241,-440.0,0.00019178,2]
[365029712,1749415833250,-430.0,0.00019178,2]
[365029714,1749415833259,-430.0,0.00019178,2]
[365029716,1749415833270,-440.0,0.00019178,2]
[365029718,1749415833278,-440.0,0.00019178,2]
[365029720,1749415833289,-440.0,0.00019178,2]
[365029722,1749415833298,-440.0,0.00019178,2]
[365029724,1749415833308,-418.3081927,0.00019178,2]
[365029726,1749415833317,-430.0,0.00019178,2]
[365029728,1749415833327,-409.1624014,0.00019178,2]
[365029730,1749415833337,-440.0,0.00019178,2]
[365029732,1749415833346,-455.12939596,0.00019178,2]
[365029733,1749415833357,-404.55494655,0.00019178,2]
[365029734,1749415833366,-440.0,0.00019178,2]
[365029736,1749415833376,-440.0,0.00019178,2]
[365029737,1749415833386,-396.57314751,0.00019178,2]
[365029739,1749415833395,-440.0,0.00019178,2]
[365029741,1749415833405,-440.0,0.00019178,2]
[365029743,1749415833414,-409.60711294,0.00019178,2]
[365029745,1749415833424,-392.08601506,0.00019178,2]
[365029747,1749415833433,-440.0,0.00019178,2]
[365029749,1749415833442,-426.95562546,0.00019178,2]
[365029751,1749415833452,-440.0,0.00019178,2]
[365029753,1749415833461,-430.0,0.00019178,2]
[365029755,1749415833470,-440.0,0.00019178,2]
[365029757,1749415833481,-440.0,0.00019178,2]
[365029759,1749415833490,-440.0,0.00019178,2]
[365029761,1749415833499,-430.0,0.00019178,2]
[365029763,1749415833509,-440.0,0.00019178,2]
[365029765,1749415833519,-440.0,0.00019178,2]
[365029767,1749415833529,-440.0,0.00019178,2]
[365029769,1749415833538,-430.0,0.00019178,2]
[365029771,1749415833548,-440.0,0.00019178,2]
[365029773,1749415833558,-440.0,0.00019178,2]
[365029775,1749415833567,-430.0,0.00019178,2]
[365029777,1749415833578,-450.0,0.00019178,2]
[365029779,1749415833588,-440.0,0.00019178,2]
[365029781,1749415833597,-573.65587134,0.00019178,2]
[365029783,1749415833607,-440.0,0.00019178,2]
[365029785,1749415833617,-440.0,0.00019178,2]
[365029787,1749415833626,-430.0,0.00019178,2]
[365029789,1749415833637,-420.0,0.00019178,2]
[365029791,1749415833648,-440.0,0.00019178,2]
[365029793,1749415833658,-440.0,0.00019178,2]
[365029795,1749415833668,-440.0,0.00019178,2]
[365029797,1749415833678,-440.0,0.00019178,2]
[365029799,1749415833688,-440.0,0.00019178,2]
[365029801,1749415833699,-440.0,0.00019178,2]
[365029803,1749415833709,-440.0,0.00019178,2]
[365029806,1749415833720,-440.0,0.00019178,2]
[365029808,1749415833730,-440.0,0.00019178,2]
[365029810,1749415833740,-430.0,0.00019178,2]
[365029812,1749415833749,-425.15323334,0.00019178,2]
[365029814,1749415833759,-430.0,0.00019178,2]
[365029816,1749415833769,-440.0,0.00019178,2]
[365029817,1749415833779,-325.99500742,0.00019178,2]
[365029820,1749415833789,-430.0,0.00019178,2]
[365029822,1749415833799,-440.0,0.00019178,2]
[365029824,1749415833809,-440.0,0.00019178,2]
[365029826,1749415833819,-430.0,0.00019178,2]
[365029828,1749415833828,-440.0,0.00019178,2]
[365029830,1749415833838,-440.0,0.00019178,2]
[365029832,1749415833848,-430.0,0.00019178,2]
[365029834,1749415833858,-440.0,0.00019178,2]
[365029836,1749415833868,-430.0,0.00019178,2]
[365029838,1749415833878,-430.0,0.00019178,2]
[365029840,1749415833888,-440.0,0.00019178,2]
[365029842,1749415833898,-440.0,0.00019178,2]
[365029844,1749415833908,-440.0,0.00019178,2]
[365029846,1749415833917,-440.0,0.00019178,2]
[365029848,1749415833927,-440.0,0.00019178,2]
[365029850,1749415833936,-430.0,0.00019178,2]
[365029851,1749415833947,-440.0,0.00019178,2]
[365029852,1749415833956,-430.0,0.00019178,2]
[365029853,1749415833966,-440.0,0.00019178,2]
[365029854,1749415833975,-450.0,0.00019178,2]
[365029855,1749415833985,-430.0,0.00019178,2]
[365029856,1749415833994,-436.4102822,0.00019178,2]
[365029857,1749415834004,-440.0,0.00019178,2]
[365029858,1749415834013,-440.0,0.00019178,2]
[365029859,1749415834023,-440.0,0.00019178,2]
[365029860,1749415834033,-440.0,0.00019178,2]
[365029861,1749415834043,-430.0,0.00019178,2]
[365029862,1749415834053,-440.0,0.00019178,2]
[365029863,1749415834062,-420.0,0.00019178,2]
[365029864,1749415834072,-431.01280067,0.00019178,2]
[365029865,1749415834081,-440.0,0.00019178,2]
[365029866,1749415834091,-381.4688784,0.00019178,2]
[365029867,1749415834100,-440.0,0.00019178,2]
[365029868,1749415834109,-440.0,0.00019178,2]
[365029869,1749415834118,-414.0,0.00019178,2]
[365029870,1749415834127,-440.0,0.00019178,2]
[365029871,1749415834137,-440.0,0.00019178,2]
[365029872,1749415834146,-440.0,0.00019178,2]
[365029873,1749415834155,-370.0,0.00019178,2]
[365029875,1749415834164,-597.76,0.00019178,2]
[365029877,1749415834174,-440.0,0.00019178,2]
[365029879,1749415834183,-440.0,0.00019178,2]
[365029881,1749415834192,-430.0,0.00019178,2]
[365029883,1749415834202,-440.0,0.00019178,2]
[365029885,1749415834212,-440.0,0.00019178,2]
[365029887,1749415834223,-219.42145032,0.00019178,2]
[365029889,1749415834232,-430.0,0.00019178,2]
[365029891,1749415834241,-223.53114285,0.00019178,2]
[365029893,1749415834251,-440.0,0.00019178,2]
[365029895,1749415834261,-440.0,0.00019178,2]
[365029897,1749415834271,-481.09,0.00019178,2]
[365029899,1749415834280,-440.0,0.00019178,2]
[365029901,1749415834290,-367.67524513,0.00019178,2]
[365029903,1749415834300,-430.0,0.00019178,2]
[365029905,1749415834310,-430.0,0.00019178,2]
[365029907,1749415834320,-440.0,0.00019178,2]
[365029909,1749415834330,-440.0,0.00019178,2]
[365029911,1749415834341,-430.0,0.00019178,2]
[365029914,1749415834351,-440.0,0.00019178,2]
[365029916,1749415834361,-440.0,0.00019178,2]
[365029918,1749415834371,-430.0,0.00019178,2]
[365029920,1749415834380,-430.0,0.00019178,2]
[365029922,1749415834389,-804.39,0.00019178,2]
[365029924,1749415834399,-440.0,0.00019178,2]
[365029926,1749415834409,-530.76,0.00019178,2]
[365029928,1749415834418,-440.0,0.00019178,2]
[365029930,1749415834428,-440.0,0.00019178,2]
[365029932,1749415834438,-430.0,0.00019178,2]
[365029934,1749415834448,-440.0,0.00019178,2]
[365029936,1749415834458,-390.0,0.00019178,2]
[365029938,1749415834467,-430.0,0.00019178,2]
[365029940,1749415834477,-2010.77,0.00019178,2]
[365029956,1749415834487,-440.0,0.00019178,2]
[365029958,1749415834624,-440.0,0.00019178,2]
[365029960,1749415834633,-440.0,0.00019178,2]
[365029962,1749415834643,-440.0,0.00019178,2]
[365029964,1749415834653,-440.0,0.00019178,2]
[365029966,1749415834663,-440.0,0.00019178,2]
[365029968,1749415834673,-2345.44,0.00019178,2]
[365029970,1749415834682,-440.0,0.00019178,2]
[365029972,1749415834692,-430.0,0.00019178,2]
[365029974,1749415834702,-430.0,0.00019178,2]
[365029977,1749415834712,-448.33,0.00019178,2]
[365029979,1749415834721,-440.0,0.00019178,2]
[365029981,1749415834730,-440.0,0.00019178,2]
[365029983,1749415834740,-500.0,0.00019178,2]
[365029985,1749415834749,-500.0,0.00019178,2]
[365029987,1749415834759,-430.0,0.00019178,2]
[365029989,1749415834768,-500.0,0.00019178,2]
[365029991,1749415834777,-659.78,0.00019178,2]
[365029993,1749415834787,-440.0,0.00019178,2]
[365029995,1749415834797,-440.0,0.00019178,2]
[365029997,1749415834807,-440.0,0.00019178,2]
[365029999,1749415834816,-430.0,0.00019178,2]
[365030001,1749415834826,-430.0,0.00019178,2]
[365030003,1749415834835,-430.0,0.00019178,2]
[365030005,1749415834845,-440.0,0.00019178,2]
[365030007,1749415834856,-700.82,0.00019178,2]
[365030009,1749415834866,-440.0,0.00019178,2]
[365030011,1749415834875,-440.0,0.00019178,2]
[365030013,1749415834885,-430.0,0.00019178,2]
[365030015,1749415834895,-430.0,0.00019178,2]
[365030017,1749415834905,-440.0,0.00019178,2]
[365030019,1749415834914,-440.0,0.00019178,2]
[365030021,1749415834924,-430.0,0.00019178,2]
[365030023,1749415834934,-440.0,0.00019178,2]
[365030025,1749415834945,-430.0,0.00019178,2]
[365030028,1749415834954,-510.0,0.00019178,2]
[365030030,1749415834964,-430.0,0.00019178,2]
[365030032,1749415834974,-430.0,0.00019178,2]
[365030034,1749415834984,-430.0,0.00019178,2]
[365030036,1749415834994,-162.48177066,0.00019178,2]
[365030037,1749415835003,-318.80190651,0.00019178,2]
[365030040,1749415835013,-430.0,0.00019178,2]
[365030042,1749415835026,-430.0,0.00019178,2]
[365030044,1749415835036,-440.0,0.00019178,2]
[365030046,1749415835045,-430.0,0.00019178,2]
[365030048,1749415835055,-440.0,0.00019178,2]
[365030050,1749415835065,-440.0,0.00019178,2]
[365030052,1749415835075,-440.0,0.00019178,2]
[365030054,1749415835084,-430.0,0.00019178,2]
[365030056,1749415835094,-440.0,0.00019178,2]
[365030058,1749415835103,-440.0,0.00019178,2]
[365030060,1749415835113,-440.0,0.00019178,2]
[365030062,1749415835123,-430.0,0.00019178,2]
[365030064,1749415835132,-1562.88,0.00019178,2]
[365030066,1749415835142,-430.0,0.00019178,2]
[365030068,1749415835151,-430.0,0.00019178,2]
[365030070,1749415835161,-440.0,0.00019178,2]
[365030072,1749415835171,-270.0,0.00019178,2]
[365030074,1749415835180,-440.0,0.00019178,2]
[365030076,1749415835190,-440.0,0.00019178,2]
[365030078,1749415835200,-440.0,0.00019178,2]
[365030080,1749415835210,-440.0,0.00019178,2]
[365030082,1749415835220,-440.0,0.00019178,2]
[365030084,1749415835231,-440.0,0.00019178,2]
[365030087,1749415835241,-440.0,0.00019178,2]
[365030089,1749415835250,-440.0,0.00019178,2]
[365030091,1749415835260,-3278.81,0.00019178,2]
[365030093,1749415835270,-440.0,0.00019178,2]
[365030095,1749415835279,-1950.09,0.00019178,2]
[365030097,1749415835288,-325.79861092,0.00019178,2]
[365030099,1749415835299,-1273.13,0.00019178,2]
[365030101,1749415835308,-450.0,0.00019178,2]
[365030103,1749415835319,-440.0,0.00019178,2]
[365030105,1749415835329,-440.0,0.00019178,2]
[365030107,1749415835338,-213.37467369,0.00019178,2]
[365030109,1749415835348,-440.0,0.00019178,2]
[365030111,1749415835357,-2317.81,0.00019178,2]
[365030113,1749415835367,-440.0,0.00019178,2]
[365030115,1749415835376,-440.0,0.00019178,2]
[365030117,1749415835385,-440.0,0.00019178,2]
[365030119,1749415835396,-440.0,0.00019178,2]
[365030121,1749415835406,-440.0,0.00019178,2]
[365030123,1749415835415,-780.9,0.00019178,2]
[365030125,1749415835425,-440.0,0.00019178,2]
[365030127,1749415835435,-430.0,0.00019178,2]
[365030129,1749415835444,-440.0,0.00019178,2]
[365030131,1749415835454,-440.0,0.00019178,2]
[365030133,1749415835464,-440.0,0.00019178,2]
[365030135,1749415835474,-440.0,0.00019178,2]
[365030137,1749415835483,-824.77,0.00019178,2]
[365030139,1749415835493,-440.0,0.00019178,2]
[365030141,1749415835503,-420.0,0.00019178,2]
[365030143,1749415835512,-1729.16,0.00019178,2]
[365030145,1749415835522,-440.0,0.00019178,2]
[365030147,1749415835532,-440.0,0.00019178,2]
[365030149,1749415835541,-420.0,0.00019178,2]
[365030151,1749415835551,-440.0,0.00019178,2]
[365030153,1749415835560,-440.0,0.00019178,2]
[365030155,1749415835570,-408.54429707,0.00019178,2]
[365030157,1749415835580,-420.0,0.00019178,2]
[365030159,1749415835590,-330.0,0.00019178,2]
[365030161,1749415835600,-2252.03,0.00019178,2]
[365030163,1749415835610,-778.81,0.00019178,2]
[365030165,1749415835619,-440.0,0.00019178,2]
[365030167,1749415835629,-440.0,0.00019178,2]
[365030170,1749415835638,-440.0,0.00019178,2]
[365030171,1749415835648,-440.0,0.00019178,2]
[365030174,1749415835658,-360.0,0.00019178,2]
[365030176,1749415835667,-440.0,0.00019178,2]
[365030178,1749415835677,-430.0,0.00019178,2]
[365030180,1749415835686,-207.0,0.00019178,3]
[365030182,1749415835697,-781.51,0.00019265,2]
[365030184,1749415835707,-409.22730984,0.00019352,2]
[365030186,1749415835716,-420.0,0.00019452,2]
[365030188,1749415835726,-440.0,0.00019452,2]
[365030190,1749415835736,-410.0,0.00019452,2]
[365030192,1749415835746,-420.0,0.00019452,2]
[365030194,1749415835756,-340.0,0.00019452,2]
[365030196,1749415835766,-420.0,0.00019452,2]
[365030198,1749415835776,-440.0,0.00019452,2]
[365030200,1749415835785,-440.0,0.00019452,2]
[365030202,1749415835795,-165.82942444,0.00019452,2]
[365030204,1749415835804,-440.0,0.00019452,2]
[365030206,1749415835814,-420.0,0.00019452,2]
[365030208,1749415835823,-420.0,0.00019452,2]
[365030210,1749415835833,-464.15458438,0.00019452,2]
[365030212,1749415835842,-440.0,0.00019452,2]
[365030214,1749415835852,-440.0,0.00019452,2]
[365030216,1749415835861,-440.0,0.00019452,2]
[365030218,1749415835871,-420.0,0.00019452,2]
[365030220,1749415835881,-252.68600831,0.00019452,2]
[365030222,1749415835891,-420.0,0.00019452,2]
[365030224,1749415835901,-420.0,0.00019452,2]
[365030227,1749415835911,-578.72,0.00019452,2]
[365030229,1749415835920,-420.0,0.00019452,2]
[365030231,1749415835930,-420.0,0.00019452,2]
[365030233,1749415835940,-420.0,0.00019452,2]
[365030235,1749415835949,-440.0,0.00019452,2]
[365030237,1749415835959,-420.0,0.00019452,2]
[365030239,1749415835969,-420.0,0.00019452,2]
[365030241,1749415835978,-440.0,0.00019452,2]
[365030243,1749415835987,-440.0,0.00019452,2]
[365030245,1749415835998,-420.0,0.00019452,2]
[365030247,1749415836007,-218.50818203,0.00019452,2]
[365030249,1749415836017,-374.97672165,0.00019452,2]
[365030251,1749415836026,-440.0,0.00019452,2]
[365030253,1749415836037,-440.0,0.00019452,2]
[365030255,1749415836048,-410.0,0.00019452,2]
[365030257,1749415836057,-440.0,0.00019452,2]
[365030259,1749415836067,-420.0,0.00019452,2]
[365030261,1749415836076,-420.0,0.00019452,2]
[365030263,1749415836086,-430.0,0.00019452,2]
[365030265,1749415836095,-420.0,0.00019452,2]
[365030267,1749415836104,-420.0,0.00019452,2]
[365030269,1749415836114,-420.0,0.00019452,2]
[365030271,1749415836123,-440.0,0.00019452,2]
[365030273,1749415836132,-420.0,0.00019452,2]
[365030275,1749415836142,-420.0,0.00019452,2]
[365030277,1749415836152,-420.0,0.00019452,2]
[365030279,1749415836162,-420.0,0.00019452,2]
[365030281,1749415836171,-420.0,0.00019452,2]
[365030283,1749415836180,-420.0,0.00019452,2]
[365030285,1749415836190,-440.0,0.00019452,2]
[365030287,1749415836200,-440.0,0.00019452,2]
[365030289,1749415836209,-420.0,0.00019452,2]
[365030291,1749415836219,-440.0,0.00019452,2]
[365030293,1749415836229,-420.0,0.00019452,2]
[365030295,1749415836238,-420.0,0.00019452,2]
[365030296,1749415836248,-420.0,0.00019452,2]
[365030297,1749415836259,-420.0,0.00019452,2]
[365030298,1749415836269,-420.0,0.00019452,2]
[365030299,1749415836279,-440.0,0.00019452,2]
[365030300,1749415836289,-274.853538,0.00019452,2]
[365030301,1749415836298,-420.0,0.00019452,2]
[365030302,1749415836307,-440.0,0.00019452,2]
[365030303,1749415836316,-420.0,0.00019452,2]
[365030304,1749415836326,-440.0,0.00019452,2]
[365030305,1749415836336,-420.0,0.00019452,2]
[365030306,1749415836345,-440.0,0.00019452,2]
[365030307,1749415836354,-440.0,0.00019452,2]
[365030308,1749415836365,-420.0,0.00019452,2]
[365030309,1749415836375,-420.0,0.00019452,2]
[365030310,1749415836384,-420.0,0.00019452,2]
[365030311,1749415836393,-420.0,0.00019452,2]
[365030312,1749415836404,-203.86314245,0.00019452,2]
[365030313,1749415836414,-420.0,0.00019452,2]
[365030314,1749415836424,-193.29054747,0.00019452,2]
[365030315,1749415836433,-440.0,0.00019452,2]
[365030316,1749415836443,-514.8,0.00019452,2]
[365030317,1749415836453,-410.0,0.00019452,2]
[365030318,1749415836463,-257.66934147,0.00019452,2]
[365030319,1749415836473,-440.0,0.00019452,2]
[365030320,1749415836482,-597.76,0.00019452,2]
[365030321,1749415836492,-440.0,0.00019452,2]
[365030322,1749415836502,-420.0,0.00019452,2]
[365030323,1749415836511,-440.0,0.00019452,2]
[365030324,1749415836520,-420.0,0.00019452,2]
[365030325,1749415836530,-430.0,0.00019452,2]
[365030326,1749415836542,-440.0,0.00019452,2]
[365030327,1749415836552,-440.0,0.00019452,2]
[365030328,1749415836562,-440.0,0.00019452,2]
[365030329,1749415836572,-440.0,0.00019452,2]
[365030330,1749415836582,-440.0,0.00019452,2]
[365030331,1749415836593,-440.0,0.00019452,2]
[365030332,1749415836604,-804.39,0.00019452,2]
[365030333,1749415836615,-440.0,0.00019452,2]
[365030334,1749415836624,-530.76,0.00019452,2]
[365030335,1749415836633,-420.0,0.00019452,2]
[365030336,1749415836643,-440.0,0.00019452,2]
[365030337,1749415836652,-440.0,0.00019452,2]
[365030338,1749415836662,-2010.77,0.00019452,2]
[365030339,1749415836672,-440.0,0.00019452,2]
[365030340,1749415836681,-420.0,0.00019452,2]
[365030341,1749415836692,-440.0,0.00019452,2]
[365030342,1749415836701,-440.0,0.00019452,2]
[365030343,1749415836711,-440.0,0.00019452,2]
[365030344,1749415836721,-420.0,0.00019452,2]
[365030345,1749415836730,-2345.44,0.00019452,2]
[365030346,1749415836740,-440.0,0.00019452,2]
[365030347,1749415836750,-420.0,0.00019452,2]
[365030348,1749415836760,-659.78,0.00019452,2]